[Event "37th Belgrade Trophy 2024"]
[Site "Belgrade"]
[Date "2024.11.24"]
[Round "2.7"]
[White "Ivanovic, Marko"]
[Black "Darmaeva, Nomina"]
[Result "1-0"]
[ECO "D02"]
[WhiteElo "2297"]
[BlackElo "1936"]
[Annotator "RC"]
[PlyCount "117"]
[EventDate "2024.11.23"]
[EventCountry "SRB"]
[SourceTitle "playchess.com"]
[Source "ChessBase"]
[SourceQuality "1"]
[TimeControl "40/5400+30:900+30"]

1. Nf3 {[%emt 0:00:01]} d5 {[%emt 0:04:45]} 2. g3 {[%emt 0:00:09]} Nd7 {[%emt 0:00:05]} 3. d4 {[%emt 0:00:16]} Nb6 {[%emt 0:01:30]} 4. b3 {[%emt 0:00:07]} Bf5 {[%emt 0:03:23]} 5. Bb2 {[%emt 0:03:50]} Nf6 {[%emt 0:01:30]} 6. Nbd2 {[%emt 0:00:21]} e6 {[%emt 0:02:09]} 7. Nh4 {[%emt 0:00:37]} Bg4 {[%emt 0:02:34]} 8. h3 {[%emt 0:00:57]} Bh5 {[%emt 0:01:05]} 9. Bg2 {[%emt 0:02:18]} Be7 {[%emt 0:04:04]} 10. g4 {[%emt 0:01:50]} Ne4 {[%emt 0:04:56]} 11. Nxe4 {[%emt 0:06:42]} dxe4 {[%emt 0:01:00]} 12. gxh5 {[%emt 0:00:06]} Bxh4 {[%emt 0:00:10]} 13. Bxe4 {[%emt 0:00:38]} Qf6 {[%emt 0:06:50]} 14. Rf1 {[%emt 0:00:49]} Nd5 {[%emt 0:07:22]} 15. Qd2 {[%emt 0:01:58]} Bg5 {[%emt 0:05:08]} 16. Qd3 {[%emt 0:04:57]} O-O-O {[%emt 0:06:50]} 17. e3 {[%emt 0:01:40]} c6 {[%emt 0:06:01]} 18. c4 {[%emt 0:01:41]} Ne7 {[%emt 0:02:18]} 19. O-O-O {[%emt 0:00:09]} Qh6 {[%emt 0:01:03]} 20. f4 {[%emt 0:02:10]} Bh4 {[%emt 0:00:25]} 21. Bf3 {[%emt 0:00:21]} Rhe8 {[%emt 0:07:06]} 22. Kb1 {[%emt 0:00:14]} g6 {[%emt 0:01:13]} 23. Qc3 {[%emt 0:01:21]} Nf5 {[%emt 0:02:34]} 24. Bc1 {[%emt 0:02:15]} Qg7 {[%emt 0:01:52]} 25. Rd3 {[%emt 0:03:03]} gxh5 {[%emt 0:03:57]} 26. Rfd1 {[%emt 0:00:07]} Bf6 {[%emt 0:01:05]} 27. Bxh5 {[%emt 0:00:18]} Ng3 {[%emt 0:01:33]} 28. Bf3 {[%emt 0:01:22]} Nf5 {[%emt 0:03:01]} 29. Bb2 {[%emt 0:08:00]} Rg8 {[%emt 0:01:18]} 30. a3 {[%emt 0:06:25]} Qh8 {[%emt 0:03:54]} 31. Ka2 {[%emt 0:01:43]} Rg3 {[%emt 0:01:56]} 32. Bg4 {[%emt 0:00:21]} Nd6 {[%emt 0:01:37]} 33. Qe1 {[%emt 0:01:04]} Ne4 {[%emt 0:02:20]} 34. Qe2 {[%emt 0:00:13]} h5 {[%emt 0:03:31]} 35. Bf3 {[%emt 0:01:09]} Qh7 {[%emt 0:00:35]} 36. Bh1 {[%emt 0:00:17]} Bg7 {[%emt 0:03:54]} 37. b4 {[%emt 0:01:04]} f5 {[%emt 0:01:12]} 38. b5 {[%emt 0:04:57]} cxb5 {[%emt 0:00:18]} 39. cxb5 {[%emt 0:00:34]} Kb8 {[%emt 0:00:21]} 40. Bxe4 {[%emt 0:00:00]} fxe4 {[%emt 0:00:00]} 41. Rc3 {[%emt 0:00:43]} Bf8 {[%emt 0:01:50]} 42. Rdc1 {[%emt 0:04:02]} Bd6 {[%emt 0:00:54]} 43. Qc2 {[%emt 0:03:59]} Rgg8 {[%emt 0:01:04]} 44. a4 {[%emt 0:00:12]} Qf5 {[%emt 0:00:42]} 45. Ba3 {[%emt 0:00:44]} Bxa3 {[%emt 0:02:15]} 46. Kxa3 {[%emt 0:00:39]} Qd5 {[%emt 0:01:48]} 47. Rc5 {[%emt 0:00:32]} Qd6 {[%emt 0:00:17]} 48. Kb3 {[%emt 0:00:08]} b6 {[%emt 0:00:40]} 49. Rc6 {[%emt 0:01:47]} Qd5+ {[%emt 0:00:13]} 50. Kb4 {[%emt 0:00:14]} Qd7 {[%emt 0:01:32]} 51. Qxe4 {[%emt 0:00:38]} Rde8 {[%emt 0:04:17]} 52. Qe5+ {[%emt 0:00:50]} Ka8 {[%emt 0:00:09]} 53. Qxh5 {[%emt 0:03:08]} Rg3 {[%emt 0:00:50]} 54. Qxe8+ {[%emt 0:00:12]} Qxe8 {[%emt 0:00:06]} 55. Rc8+ {[%emt 0:00:01]} Qxc8 {[%emt 0:00:13]} 56. Rxc8+ {[%emt 0:00:02]} Kb7 {[%emt 0:00:17]} 57. Rc3 {[%emt 0:00:01]} Rxh3 {[%emt 0:00:09]} 58. Kc4 {[%emt 0:00:07]} Rh5 {[%emt 0:01:18]} 59. Kd3 {[%emt 0:00:05]} 1-0

[Event "37th Belgrade Trophy 2024"]
[Site "Belgrade"]
[Date "2024.11.24"]
[Round "2.8"]
[White "Nikolic, Matija"]
[Black "Galojan, Lilit"]
[Result "0-1"]
[ECO "E09"]
[WhiteElo "1951"]
[BlackElo "2285"]
[Annotator "RC"]
[PlyCount "42"]
[EventDate "2024.11.23"]
[EventCountry "SRB"]
[SourceTitle "playchess.com"]
[Source "ChessBase"]
[SourceQuality "1"]
[TimeControl "40/5400+30:900+30"]

1. d4 {[%emt 0:00:03]} Nf6 {[%emt 0:00:48]} 2. c4 {[%emt 0:00:09]} e6 {[%emt 0:00:03]} 3. Nf3 {[%emt 0:00:06]} b6 {[%emt 0:01:28]} 4. g3 {[%emt 0:00:12]} Ba6 {[%emt 0:00:58]} 5. Qc2 {[%emt 0:00:09]} c6 {[%emt 0:01:47]} 6. Bg2 {[%emt 0:04:55]} d5 {[%emt 0:00:31]} 7. b3 {[%emt 0:00:14]} Nbd7 {[%emt 0:02:46]} 8. O-O {[%emt 0:02:29]} Be7 {[%emt 0:03:07]} 9. Nbd2 {[%emt 0:03:32]} O-O {[%emt 0:03:12]} 10. Bb2 {[%emt 0:02:26]} c5 {[%emt 0:07:34]} 11. e3 {[%emt 0:12:34]} Rc8 {[%emt 0:00:44]} 12. Rac1 {[%emt 0:01:34]} b5 {[%emt 0:14:45]} 13. cxb5 {[%emt 0:04:58]} Bxb5 {[%emt 0:00:55]} 14. Rfd1 {[%emt 0:06:46]} Qa5 {[%emt 0:04:39]} 15. Bc3 {[%emt 0:00:30]} Qa6 {[%emt 0:00:56]} 16. Qb2 {[%emt 0:02:41]} Rb8 {[%emt 0:03:52]} 17. Bf1 {[%emt 0:16:18]} Bxf1 {[%emt 0:04:24]} 18. Rxf1 {[%emt 0:00:13]} cxd4 {[%emt 0:00:29]} 19. Bxd4 {[%emt 0:00:28]} Ba3 {[%emt 0:00:17]} 20. Qa1 {[%emt 0:00:29]} Bxc1 {[%emt 0:00:05]} 21. Rxc1 {[%emt 0:00:01]} Rfc8 {[%emt 0:01:34]} 0-1

[Event "37th Belgrade Trophy 2024"]
[Site "Belgrade"]
[Date "2024.11.24"]
[Round "2.9"]
[White "Petrovic, Aleksa"]
[Black "Bajkic, Strahinja"]
[Result "1-0"]
[ECO "E05"]
[WhiteElo "2262"]
[BlackElo "1923"]
[Annotator "RC"]
[PlyCount "67"]
[EventDate "2024.11.23"]
[EventCountry "SRB"]
[SourceTitle "playchess.com"]
[Source "ChessBase"]
[SourceQuality "1"]
[TimeControl "40/5400+30:900+30"]

1. g3 {[%emt 0:00:03]} Nf6 {[%emt 0:04:03]} 2. Bg2 {[%emt 0:00:07]} d5 {[%emt 0:00:50]} 3. c4 {[%emt 0:01:33]} e6 {[%emt 0:01:20]} 4. Nf3 {[%emt 0:00:18]} Be7 {[%emt 0:01:15]} 5. d4 {[%emt 0:00:06]} O-O {[%emt 0:01:41]} 6. O-O {[%emt 0:00:04]} dxc4 {[%emt 0:02:47]} 7. Qc2 {[%emt 0:00:05]} b6 {[%emt 0:02:19]} 8. Bg5 {[%emt 0:01:19]} Nd5 {[%emt 0:04:50]} 9. Bxe7 {[%emt 0:00:06]} Qxe7 {[%emt 0:00:24]} 10. Qxc4 {[%emt 0:00:14]} Bb7 {[%emt 0:02:34]} 11. Re1 {[%emt 0:06:50]} Rc8 {[%emt 0:14:17]} 12. e4 {[%emt 0:01:15]} Nf6 {[%emt 0:01:30]} 13. Nc3 {[%emt 0:00:30]} Nbd7 {[%emt 0:02:02]} 14. Rad1 {[%emt 0:02:27]} c6 {[%emt 0:03:17]} 15. Qb3 {[%emt 0:08:40]} Rd8 {[%emt 0:07:42]} 16. Rd2 {[%emt 0:05:12]} Ne8 {[%emt 0:05:03]} 17. Qd1 {[%emt 0:02:24]} Nd6 {[%emt 0:04:26]} 18. d5 {[%emt 0:05:13]} Nb5 {[%emt 0:08:03]} 19. dxe6 {[%emt 0:06:05]} fxe6 {[%emt 0:01:06]} 20. Nxb5 {[%emt 0:01:11]} cxb5 {[%emt 0:00:54]} 21. Nd4 {[%emt 0:00:07]} a6 {[%emt 0:03:06]} 22. Nf5 {[%emt 0:21:52]} exf5 {[%emt 0:07:19]} 23. exf5 {[%emt 0:00:12]} Ne5 {[%emt 0:02:01]} 24. Bxb7 {[%emt 0:00:08]} Rxd2 {[%emt 0:01:31]} 25. Qxd2 {[%emt 0:00:06]} Re8 {[%emt 0:00:17]} 26. Qd5+ {[%emt 0:04:42]} Kh8 {[%emt 0:00:52]} 27. Kg2 {[%emt 0:01:34]} Qc7 {[%emt 0:04:00]} 28. Bc6 {[%emt 0:03:12]} Re7 {[%emt 0:01:08]} 29. Bxb5 {[%emt 0:00:08]} h6 {[%emt 0:01:13]} 30. Bxa6 {[%emt 0:00:17]} Ng4 {[%emt 0:02:10]} 31. Rxe7 {[%emt 0:00:12]} Qxe7 {[%emt 0:00:01]} 32. Qe6 {[%emt 0:30:18]} Qa7 {[%emt 0:01:37]} 33. Qc8+ {[%emt 0:00:00]} Kh7 {[%emt 0:00:08]} 34. Qb7 {[%emt 0:00:00]} 1-0

[Event "37th Belgrade Trophy 2024"]
[Site "Belgrade"]
[Date "2024.11.24"]
[Round "2.10"]
[White "Vucinic, Filip"]
[Black "Martic, Ivan"]
[Result "0-1"]
[ECO "B43"]
[WhiteElo "1944"]
[BlackElo "2261"]
[Annotator "RC"]
[PlyCount "90"]
[EventDate "2024.11.23"]
[EventCountry "SRB"]
[SourceTitle "playchess.com"]
[Source "ChessBase"]
[SourceQuality "1"]
[TimeControl "40/5400+30:900+30"]

1. e4 {[%emt 0:00:01]} c5 {[%emt 0:10:38]} 2. Nf3 {[%emt 0:00:05]} e6 {[%emt 0:00:07]} 3. Nc3 {[%emt 0:00:08]} a6 {[%emt 0:00:17]} 4. d4 {[%emt 0:00:25]} cxd4 {[%emt 0:00:06]} 5. Nxd4 {[%emt 0:00:02]} b5 {[%emt 0:00:28]} 6. Bd3 {[%emt 0:02:03]} Bb7 {[%emt 0:00:41]} 7. O-O {[%emt 0:00:10]} Nc6 {[%emt 0:00:07]} 8. Nce2 {[%emt 0:03:39]} Nf6 {[%emt 0:02:24]} 9. Re1 {[%emt 0:02:01]} Bc5 {[%emt 0:04:34]} 10. Nxc6 {[%emt 0:04:47]} Bxc6 {[%emt 0:00:25]} 11. Ng3 {[%emt 0:00:04]} h5 {[%emt 0:02:37]} 12. h3 {[%emt 0:09:13]} h4 {[%emt 0:03:57]} 13. Nf1 {[%emt 0:00:39]} d5 {[%emt 0:10:34]} 14. e5 {[%emt 0:05:05]} Ne4 {[%emt 0:05:23]} 15. Bxe4 {[%emt 0:04:55]} dxe4 {[%emt 0:00:06]} 16. Qg4 {[%emt 0:18:39]} Qd4 {[%emt 0:04:57]} 17. Qf4 {[%emt 0:00:16]} Rh5 {[%emt 0:07:17]} 18. c3 {[%emt 0:15:00]} Qxe5 {[%emt 0:00:23]} 19. Qxe5 {[%emt 0:00:21]} Rxe5 {[%emt 0:00:06]} 20. Bf4 {[%emt 0:00:11]} Rh5 {[%emt 0:08:58]} 21. Nd2 {[%emt 0:03:34]} f5 {[%emt 0:02:31]} 22. Nb3 {[%emt 0:01:58]} Be7 {[%emt 0:03:51]} 23. Nd4 {[%emt 0:01:19]} Bd5 {[%emt 0:02:07]} 24. a4 {[%emt 0:07:26]} bxa4 {[%emt 0:02:01]} 25. Rxa4 {[%emt 0:00:11]} g5 {[%emt 0:01:36]} 26. Be5 {[%emt 0:00:48]} Kf7 {[%emt 0:00:32]} 27. c4 {[%emt 0:02:42]} Bb7 {[%emt 0:01:08]} 28. b4 {[%emt 0:00:08]} g4 {[%emt 0:02:48]} 29. c5 {[%emt 0:02:13]} Bd5 {[%emt 0:01:19]} 30. Kh2 {[%emt 0:06:36]} gxh3 {[%emt 0:02:24]} 31. Kxh3 {[%emt 0:01:15]} f4 {[%emt 0:02:24]} 32. Bd6 {[%emt 0:04:21]} Bf6 {[%emt 0:05:02]} 33. Ne2 {[%emt 0:00:16]} e5 {[%emt 0:00:23]} 34. Nc3 {[%emt 0:00:38]} Be6+ {[%emt 0:04:13]} 35. Kh2 {[%emt 0:00:03]} h3 {[%emt 0:00:22]} 36. g3 {[%emt 0:00:03]} e3 {[%emt 0:00:33]} 37. gxf4 {[%emt 0:01:34]} Rg8 {[%emt 0:02:43]} 38. fxe3 {[%emt 0:01:50]} exf4 {[%emt 0:03:12]} 39. Ne4 {[%emt 0:01:20]} Rg2+ {[%emt 0:01:36]} 40. Kh1 {[%emt 0:00:00]} Bd5 {[%emt 0:00:00]} 41. exf4 {[%emt 0:01:09]} Bh4 {[%emt 0:09:45]} 42. Re3 {[%emt 0:11:43]} Bf2 {[%emt 0:01:17]} 43. Re2 {[%emt 0:00:30]} h2 {[%emt 0:00:51]} 44. Kxg2 {[%emt 0:01:12]} h1=Q+ {[%emt 0:00:48]} 45. Kxf2 {[%emt 0:00:30]} Rh2+ {[%emt 0:01:29]} 0-1

[Event "37th Belgrade Trophy 2024"]
[Site "Belgrade"]
[Date "2024.11.25"]
[Round "3.2"]
[White "Stanojoski, Zvonko"]
[Black "Prudnikova, Svetlana"]
[Result "1-0"]
[ECO "A12"]
[WhiteElo "2401"]
[BlackElo "2129"]
[Annotator "RC"]
[PlyCount "99"]
[EventDate "2024.11.23"]
[EventCountry "SRB"]
[SourceTitle "playchess.com"]
[Source "ChessBase"]
[SourceQuality "1"]
[TimeControl "40/5400+30:900+30"]

1. Nf3 d5 2. b3 {[%emt 0:01:00]} Bf5 {[%emt 0:03:01]} 3. Bb2 {[%emt 0:06:16]} e6 {[%emt 0:00:20]} 4. g3 {[%emt 0:01:29]} h6 {[%emt 0:00:34]} 5. Bg2 {[%emt 0:00:06]} Nf6 {[%emt 0:00:13]} 6. O-O {[%emt 0:00:20]} Be7 {[%emt 0:01:09]} 7. d3 {[%emt 0:00:19]} O-O {[%emt 0:02:11]} 8. Nbd2 {[%emt 0:00:11]} Bh7 {[%emt 0:01:48]} 9. c4 {[%emt 0:00:15]} c6 {[%emt 0:00:53]} 10. a3 {[%emt 0:00:35]} a5 {[%emt 0:00:57]} 11. Rc1 {[%emt 0:00:26]} Nbd7 {[%emt 0:02:23]} 12. Rc2 {[%emt 0:00:26]} Bd6 {[%emt 0:05:25]} 13. Qa1 {[%emt 0:02:34]} Qe7 {[%emt 0:01:00]} 14. cxd5 {[%emt 0:11:59]} cxd5 {[%emt 0:13:00]} 15. Nd4 {[%emt 0:01:25]} Rfc8 {[%emt 0:02:08]} 16. Rxc8+ {[%emt 0:03:15]} Rxc8 {[%emt 0:00:07]} 17. Rc1 {[%emt 0:00:12]} Rc5 {[%emt 0:07:16]} 18. a4 {[%emt 0:02:33]} Qf8 {[%emt 0:02:24]} 19. Nb5 {[%emt 0:00:28]} Rxc1+ {[%emt 0:02:51]} 20. Qxc1 {[%emt 0:01:32]} Bb4 {[%emt 0:01:36]} 21. Nf3 {[%emt 0:01:12]} Qc5 {[%emt 0:06:45]} 22. Qd1 {[%emt 0:05:17]} Bg6 {[%emt 0:07:35]} 23. h3 {[%emt 0:03:09]} Nh5 {[%emt 0:06:44]} 24. Ne5 {[%emt 0:04:09]} Nxe5 {[%emt 0:03:11]} 25. Bxe5 {[%emt 0:00:07]} Qc8 {[%emt 0:10:55]} 26. Qa1 {[%emt 0:13:51]} f6 {[%emt 0:01:54]} 27. Bc3 {[%emt 0:00:48]} Bxc3 {[%emt 0:03:26]} 28. Nxc3 {[%emt 0:02:32]} Qc5 {[%emt 0:01:56]} 29. Kf1 {[%emt 0:00:25]} Be8 {[%emt 0:03:20]} 30. Bf3 {[%emt 0:00:23]} f5 {[%emt 0:00:35]} 31. Bxh5 {[%emt 0:01:56]} Bxh5 {[%emt 0:00:01]} 32. Nb5 {[%emt 0:00:11]} Qc2 {[%emt 0:02:09]} 33. Nd4 {[%emt 0:01:38]} Qd2 {[%emt 0:00:08]} 34. g4 {[%emt 0:00:22]} fxg4 {[%emt 0:03:34]} 35. Nxe6 {[%emt 0:00:07]} Kf7 {[%emt 0:00:07]} 36. hxg4 {[%emt 0:03:55]} Kxe6 {[%emt 0:01:44]} 37. gxh5 {[%emt 0:00:03]} Qg5 {[%emt 0:00:40]} 38. Qc3 {[%emt 0:01:17]} Qxh5 {[%emt 0:00:37]} 39. Qxg7 {[%emt 0:03:46]} Kd6 {[%emt 0:01:03]} 40. Ke1 {[%emt 0:00:00]} Qh1+ {[%emt 0:00:00]} 41. Kd2 {[%emt 0:02:32]} h5 {[%emt 0:04:51]} 42. f4 {[%emt 0:01:17]} h4 {[%emt 0:04:23]} 43. Qe5+ {[%emt 0:00:31]} Kc6 {[%emt 0:01:37]} 44. f5 {[%emt 0:01:01]} h3 {[%emt 0:01:09]} 45. f6 {[%emt 0:01:21]} Qf1 {[%emt 0:02:37]} 46. Qe8+ {[%emt 0:00:34]} Kb6 {[%emt 0:04:59]} 47. f7 {[%emt 0:02:49]} h2 {[%emt 0:00:05]} 48. Qb5+ {[%emt 0:00:21]} Kc7 {[%emt 0:00:31]} 49. Qxa5+ {[%emt 0:01:06]} Kc6 {[%emt 0:01:18]} 50. Qb5+ {[%emt 0:00:21]} 1-0

[Event "37th Belgrade Trophy 2024"]
[Site "Belgrade"]
[Date "2024.11.25"]
[Round "3.4"]
[White "Baghdasaryan, Davit"]
[Black "Sutormin, Danila"]
[Result "1/2-1/2"]
[ECO "B37"]
[WhiteElo "2121"]
[BlackElo "2394"]
[Annotator "RC"]
[PlyCount "157"]
[EventDate "2024.11.23"]
[EventCountry "SRB"]
[SourceTitle "playchess.com"]
[Source "ChessBase"]
[SourceQuality "1"]
[TimeControl "40/5400+30:900+30"]

1. e4 {[%emt 0:00:04]} c5 {[%emt 0:01:20]} 2. Nf3 {[%emt 0:00:19]} g6 {[%emt 0:00:46]} 3. d4 {[%emt 0:01:35]} cxd4 {[%emt 0:00:13]} 4. Nxd4 {[%emt 0:01:17]} Nc6 {[%emt 0:03:36]} 5. c4 {[%emt 0:00:13]} Nf6 {[%emt 0:00:32]} 6. Nc3 {[%emt 0:00:13]} d6 {[%emt 0:00:17]} 7. Nc2 {[%emt 0:00:27]} Bg7 {[%emt 0:00:47]} 8. Be2 {[%emt 0:00:19]} O-O {[%emt 0:00:13]} 9. O-O {[%emt 0:00:05]} Be6 {[%emt 0:15:38]} 10. Bd2 {[%emt 0:02:13]} Nd7 {[%emt 0:01:33]} 11. Rb1 {[%emt 0:20:56]} Rc8 {[%emt 0:08:35]} 12. b3 {[%emt 0:04:25]} Nc5 {[%emt 0:03:22]} 13. f3 {[%emt 0:01:32]} f5 {[%emt 0:03:51]} 14. b4 {[%emt 0:12:18]} Nd7 {[%emt 0:01:36]} 15. Nd5 {[%emt 0:06:08]} fxe4 {[%emt 0:19:06]} 16. fxe4 {[%emt 0:00:27]} Rxf1+ {[%emt 0:00:44]} 17. Qxf1 {[%emt 0:07:03]} Nf6 {[%emt 0:08:06]} 18. Qf4 {[%emt 0:03:27]} Ne5 {[%emt 0:11:59]} 19. Nce3 {[%emt 0:01:08]} Kh8 {[%emt 0:04:05]} 20. h4 {[%emt 0:01:43]} Qd7 {[%emt 0:02:45]} 21. Nxf6 {[%emt 0:09:36]} Bxf6 {[%emt 0:02:34]} 22. h5 {[%emt 0:04:18]} g5 {[%emt 0:01:07]} 23. Qf1 {[%emt 0:02:24]} Qa4 {[%emt 0:00:47]} 24. Nd5 {[%emt 0:04:22]} Bxd5 {[%emt 0:01:35]} 25. exd5 {[%emt 0:00:58]} Qc2 {[%emt 0:02:41]} 26. Be3 {[%emt 0:05:11]} Qe4 {[%emt 0:01:41]} 27. Bxa7 {[%emt 0:01:52]} Ra8 {[%emt 0:00:30]} 28. Bf2 {[%emt 0:00:49]} Rxa2 {[%emt 0:00:37]} 29. Re1 {[%emt 0:00:32]} Qf4 {[%emt 0:01:26]} 30. c5 {[%emt 0:01:55]} Nd3 {[%emt 0:00:59]} 31. g3 {[%emt 0:03:27]} Qxf2+ {[%emt 0:00:43]} 32. Qxf2 {[%emt 0:00:02]} Nxf2 {[%emt 0:00:01]} 33. Kxf2 {[%emt 0:00:01]} dxc5 {[%emt 0:00:29]} 34. bxc5 {[%emt 0:00:10]} Bd4+ {[%emt 0:00:14]} 35. Kf3 {[%emt 0:01:00]} Bxc5 {[%emt 0:00:24]} 36. Rb1 {[%emt 0:02:34]} b6 {[%emt 0:00:19]} 37. Bb5 {[%emt 0:01:21]} Rd2 {[%emt 0:01:19]} 38. Ke4 {[%emt 0:02:28]} Kg7 {[%emt 0:00:36]} 39. Rb3 {[%emt 0:00:21]} g4 {[%emt 0:01:33]} 40. Bd7 {[%emt 0:00:00]} Rd4+ {[%emt 0:00:00]} 41. Ke5 {[%emt 0:01:48]} Kh6 {[%emt 0:02:43]} 42. Rb1 {[%emt 0:02:00]} Rc4 {[%emt 0:05:44]} 43. Kf5 {[%emt 0:01:04]} Rd4 {[%emt 0:03:33]} 44. Ke5 {[%emt 0:03:33]} Rd3 {[%emt 0:03:09]} 45. Bxg4 {[%emt 0:00:34]} Kg5 {[%emt 0:01:07]} 46. Bf5 {[%emt 0:01:41]} Re3+ {[%emt 0:00:29]} 47. Be4 {[%emt 0:00:06]} h6 {[%emt 0:00:15]} 48. Rf1 {[%emt 0:04:32]} Rxg3 {[%emt 0:02:19]} 49. Bf3 {[%emt 0:02:11]} b5 {[%emt 0:00:28]} 50. Ke4 {[%emt 0:00:15]} b4 {[%emt 0:00:20]} 51. Rb1 {[%emt 0:02:37]} Rh3 {[%emt 0:00:42]} 52. Rb3 {[%emt 0:01:17]} Rh4+ {[%emt 0:00:12]} 53. Kd3 {[%emt 0:00:08]} Kf4 {[%emt 0:00:25]} 54. Bd1 {[%emt 0:00:56]} Bd6 {[%emt 0:00:44]} 55. Be2 {[%emt 0:00:34]} Ke5 {[%emt 0:00:22]} 56. Bf3 {[%emt 0:00:21]} Rh3 {[%emt 0:00:18]} 57. Kc4 {[%emt 0:00:26]} Rh2 {[%emt 0:00:45]} 58. Kd3 {[%emt 0:00:41]} Rf2 {[%emt 0:00:15]} 59. Kc4 {[%emt 0:00:22]} Kf4 {[%emt 0:00:49]} 60. Bd1 {[%emt 0:00:26]} Ke4 {[%emt 0:00:31]} 61. Rd3 {[%emt 0:00:41]} Be5 {[%emt 0:00:56]} 62. Bb3 {[%emt 0:00:25]} Bd6 {[%emt 0:01:07]} 63. Bd1 {[%emt 0:00:07]} Rf8 {[%emt 0:00:05]} 64. Rd4+ {[%emt 0:01:00]} Ke5 {[%emt 0:00:13]} 65. Rd3 {[%emt 0:00:30]} Rc8+ {[%emt 0:00:16]} 66. Kb3 {[%emt 0:00:07]} Kf4 {[%emt 0:00:23]} 67. Bc2 {[%emt 0:00:26]} Ra8 {[%emt 0:00:27]} 68. Rd4+ {[%emt 0:00:49]} Ke5 {[%emt 0:00:50]} 69. Rd3 {[%emt 0:00:33]} Ra1 {[%emt 0:00:21]} 70. Kc4 {[%emt 0:00:35]} Rc1 {[%emt 0:00:47]} 71. Kb3 {[%emt 0:00:25]} Kf4 {[%emt 0:00:33]} 72. Rd1 {[%emt 0:00:24]} Rxd1 {[%emt 0:00:08]} 73. Bxd1 {[%emt 0:00:01]} Ke3 {[%emt 0:00:06]} 74. Bg4 {[%emt 0:00:17]} Kf4 {[%emt 0:00:12]} 75. Be6 {[%emt 0:00:05]} Ke3 {[%emt 0:00:03]} 76. Bf7 {[%emt 0:00:03]} Kf4 {[%emt 0:00:04]} 77. Be6 {[%emt 0:00:03]} Ke3 {[%emt 0:00:04]} 78. Bf7 {[%emt 0:00:03]} Kf4 {[%emt 0:00:03]} 79. Be6 {[%emt 0:00:04]} 1/2-1/2

[Event "37th Belgrade Trophy 2024"]
[Site "Belgrade"]
[Date "2024.11.25"]
[Round "3.5"]
[White "Xie, Jianjun"]
[Black "Karisik, Nenad"]
[Result "1-0"]
[ECO "C84"]
[WhiteElo "2361"]
[BlackElo "2119"]
[Annotator "RC"]
[PlyCount "61"]
[EventDate "2024.11.23"]
[EventCountry "SRB"]
[SourceTitle "playchess.com"]
[Source "ChessBase"]
[SourceQuality "1"]
[TimeControl "40/5400+30:900+30"]

1. e4 {[%emt 0:00:20]} e5 {[%emt 0:00:05]} 2. Nf3 {[%emt 0:00:10]} Nc6 {[%emt 0:00:04]} 3. Bb5 {[%emt 0:00:39]} a6 {[%emt 0:00:22]} 4. Ba4 {[%emt 0:00:07]} Nf6 {[%emt 0:00:16]} 5. d4 {[%emt 0:01:32]} exd4 {[%emt 0:02:56]} 6. O-O {[%emt 0:00:13]} Be7 {[%emt 0:01:04]} 7. Re1 {[%emt 0:00:13]} O-O {[%emt 0:02:45]} 8. e5 {[%emt 0:00:09]} Ne8 {[%emt 0:02:30]} 9. c3 {[%emt 0:00:30]} b5 {[%emt 0:06:10]} 10. Bb3 {[%emt 0:15:33]} d5 {[%emt 0:03:05]} 11. cxd4 {[%emt 0:01:57]} Bg4 {[%emt 0:04:31]} 12. Nc3 {[%emt 0:00:43]} Bxf3 {[%emt 0:02:30]} 13. gxf3 {[%emt 0:14:31]} Bb4 {[%emt 0:03:25]} 14. Bxd5 {[%emt 0:10:33]} Bxc3 {[%emt 0:02:18]} 15. Bxc6 {[%emt 0:00:02]} Bxe1 {[%emt 0:00:33]} 16. Qxe1 {[%emt 0:00:10]} Rb8 {[%emt 0:03:50]} 17. Qe4 {[%emt 0:10:37]} Rb6 {[%emt 0:04:34]} 18. Bd2 {[%emt 0:12:07]} b4 {[%emt 0:01:42]} 19. Rc1 {[%emt 0:00:35]} g6 {[%emt 0:02:37]} 20. d5 {[%emt 0:01:08]} Ng7 {[%emt 0:08:48]} 21. Kh1 {[%emt 0:01:14]} Qe7 {[%emt 0:09:22]} 22. Be3 {[%emt 0:02:05]} f5 {[%emt 0:00:42]} 23. d6 {[%emt 0:07:00]} Qf7 {[%emt 0:06:54]} 24. Qc4 {[%emt 0:01:42]} Rxc6 {[%emt 0:01:59]} 25. Qxf7+ {[%emt 0:01:01]} Kxf7 {[%emt 0:01:39]} 26. Rxc6 {[%emt 0:00:06]} Ne6 {[%emt 0:00:36]} 27. dxc7 {[%emt 0:01:49]} Rc8 {[%emt 0:00:06]} 28. Bb6 {[%emt 0:00:04]} Ke7 {[%emt 0:00:27]} 29. Ba5 {[%emt 0:00:23]} Kd7 {[%emt 0:00:24]} 30. Rd6+ {[%emt 0:00:15]} Ke7 {[%emt 0:00:06]} 31. Rxa6 {[%emt 0:01:53]} 1-0

[Event "37th Belgrade Trophy 2024"]
[Site "Belgrade"]
[Date "2024.11.26"]
[Round "4.3"]
[White "Leftheriotis, Alexandros"]
[Black "Xie, Jianjun"]
[Result "1/2-1/2"]
[ECO "C77"]
[WhiteElo "2165"]
[BlackElo "2361"]
[Annotator "RC"]
[PlyCount "55"]
[EventDate "2024.11.23"]
[EventCountry "SRB"]
[SourceTitle "playchess.com"]
[Source "ChessBase"]
[SourceQuality "1"]
[TimeControl "40/5400+30:900+30"]

1. e4 {[%emt 0:00:43]} e5 {[%emt 0:00:10]} 2. Nf3 {[%emt 0:00:37]} Nc6 {[%emt 0:00:06]} 3. Bb5 {[%emt 0:00:36]} a6 {[%emt 0:00:06]} 4. Ba4 {[%emt 0:00:26]} Nf6 {[%emt 0:00:06]} 5. d3 {[%emt 0:00:24]} d6 {[%emt 0:02:28]} 6. c3 {[%emt 0:00:42]} g6 {[%emt 0:00:37]} 7. O-O {[%emt 0:01:01]} Bg7 {[%emt 0:00:03]} 8. Re1 {[%emt 0:00:42]} O-O {[%emt 0:00:06]} 9. h3 {[%emt 0:01:26]} Re8 {[%emt 0:03:12]} 10. Be3 {[%emt 0:02:59]} d5 {[%emt 0:14:46]} 11. Nbd2 {[%emt 0:05:34]} h6 {[%emt 0:00:34]} 12. a3 {[%emt 0:13:07]} g5 {[%emt 0:18:46]} 13. d4 {[%emt 0:17:40]} exd4 {[%emt 0:16:45]} 14. Nxd4 {[%emt 0:08:20]} Bd7 {[%emt 0:00:08]} 15. Nxc6 {[%emt 0:02:17]} Bxc6 {[%emt 0:05:54]} 16. Bxc6 {[%emt 0:02:11]} bxc6 {[%emt 0:00:02]} 17. Qa4 {[%emt 0:04:33]} Nxe4 {[%emt 0:05:07]} 18. Qxc6 {[%emt 0:05:06]} Re6 {[%emt 0:00:31]} 19. Qa4 {[%emt 0:00:06]} Rb8 {[%emt 0:02:57]} 20. Rad1 {[%emt 0:04:01]} Qe8 {[%emt 0:10:31]} 21. Qxe8+ {[%emt 0:08:28]} Rexe8 {[%emt 0:00:13]} 22. Nxe4 {[%emt 0:00:16]} Rxe4 {[%emt 0:02:33]} 23. Rxd5 {[%emt 0:00:59]} Rxb2 {[%emt 0:00:01]} 24. Rc5 {[%emt 0:04:28]} Rb3 {[%emt 0:04:34]} 25. Rxc7 {[%emt 0:02:50]} Rxa3 {[%emt 0:04:14]} 26. Rd1 {[%emt 0:02:08]} Be5 {[%emt 0:00:23]} 27. Rc8+ {[%emt 0:03:17]} Kg7 {[%emt 0:01:26]} 28. Bd4 {[%emt 0:01:04]} 1/2-1/2